[Event "*** Titled Tuesday Blitz"]
[Site "Chess.com"]
[Date "2020.10.20"]
[Round "4"]
[White "Agoking701"]
[Black "szachuspl"]
[Result "0-1"]
[WhiteElo "2341"]
[BlackElo "2523"]
[TimeControl "180+1"]
[EndTime "10:40:42 PDT"]
[Termination "szachuspl won by resignation"]

1. e4 {[%clk 0:03:00.9]} 1... c5 {[%clk 0:02:59.6]} 2. Nf3 {[%clk 0:02:58.7]}
2... a6 {[%clk 0:02:59.4]} 3. c4 {[%clk 0:02:56.8]} 3... Nc6 {[%clk 0:02:58.5]}
4. Nc3 {[%clk 0:02:52.1]} 4... e5 {[%clk 0:02:57.9]} 5. d3 {[%clk 0:02:45.9]}
5... d6 {[%clk 0:02:58.2]} 6. Be2 {[%clk 0:02:45.6]} 6... Nf6 {[%clk 0:02:58]}
7. O-O {[%clk 0:02:45.8]} 7... g6 {[%clk 0:02:58.5]} 8. Ne1 {[%clk 0:02:44.4]}
8... Bg7 {[%clk 0:02:57.2]} 9. f4 {[%clk 0:02:43.7]} 9... exf4 {[%clk
0:02:57.3]} 10. Bxf4 {[%clk 0:02:44.6]} 10... O-O {[%clk 0:02:56.9]} 11. Nf3
{[%clk 0:02:42.9]} 11... Ng4 {[%clk 0:02:53.6]} 12. Kh1 {[%clk 0:02:35.8]} 12...
h6 {[%clk 0:02:52.1]} 13. Qd2 {[%clk 0:02:28.1]} 13... Kh7 {[%clk 0:02:51.1]}
14. Rae1 {[%clk 0:02:24.4]} 14... Be6 {[%clk 0:02:50.3]} 15. h3 {[%clk 0:02:16]}
15... Nge5 {[%clk 0:02:49.5]} 16. Nd5 {[%clk 0:02:10.5]} 16... b5 {[%clk
0:02:43]} 17. b3 {[%clk 0:02:04.7]} 17... Bxd5 {[%clk 0:02:39.5]} 18. cxd5
{[%clk 0:02:00.7]} 18... Nxf3 {[%clk 0:02:38.4]} 19. Bxf3 {[%clk 0:01:46.7]}
19... Ne5 {[%clk 0:02:38.5]} 20. Be2 {[%clk 0:01:42.9]} 20... Qe7 {[%clk
0:02:30.9]} 21. Rf2 {[%clk 0:01:40.1]} 21... Rac8 {[%clk 0:02:29.5]} 22. Ref1
{[%clk 0:01:40.2]} 22... Rc7 {[%clk 0:02:29.6]} 23. Qe3 {[%clk 0:01:32.5]} 23...
Rcc8 {[%clk 0:02:21.8]} 24. g4 {[%clk 0:01:19.8]} 24... Rce8 {[%clk 0:02:21.2]}
25. Qg3 {[%clk 0:01:18.4]} 25... g5 {[%clk 0:02:20.6]} 26. Bc1 {[%clk
0:01:16.6]} 26... Ng6 {[%clk 0:02:20.5]} 27. Rf5 {[%clk 0:01:10.3]} 27... Be5
{[%clk 0:02:17.1]} 28. Qf2 {[%clk 0:01:10.3]} 28... f6 {[%clk 0:02:17.3]} 29.
Bd1 {[%clk 0:00:59.8]} 29... Kg7 {[%clk 0:02:15.7]} 30. Bc2 {[%clk 0:00:55.8]}
30... Nh4 {[%clk 0:02:15.5]} 31. Be3 {[%clk 0:00:50.5]} 31... Nxf5 {[%clk
0:02:10]} 32. gxf5 {[%clk 0:00:51.4]} 32... Bd4 {[%clk 0:02:05.5]} 33. Bxd4
{[%clk 0:00:50.4]} 33... cxd4 {[%clk 0:02:05.8]} 34. Qxd4 {[%clk 0:00:51.3]}
34... Qe5 {[%clk 0:02:04.9]} 35. Qxe5 {[%clk 0:00:46.6]} 35... Rxe5 {[%clk
0:02:02.5]} 36. d4 {[%clk 0:00:37.1]} 36... Re7 {[%clk 0:01:56.7]} 37. Bb1
{[%clk 0:00:32.6]} 37... Rc8 {[%clk 0:01:55.5]} 38. Kg2 {[%clk 0:00:33]} 38...
Rc3 {[%clk 0:01:53.9]} 39. Rd1 {[%clk 0:00:30]} 39... b4 {[%clk 0:01:51.3]} 40.
Bd3 {[%clk 0:00:30]} 40... a5 {[%clk 0:01:50.5]} 41. Rd2 {[%clk 0:00:30.1]}
41... h5 {[%clk 0:01:50.3]} 42. Kf2 {[%clk 0:00:28.9]} 42... h4 {[%clk
0:01:50.4]} 43. Kg2 {[%clk 0:00:28.8]} 43... Kf7 {[%clk 0:01:50.3]} 44. Kf2
{[%clk 0:00:28]} 44... Rec7 {[%clk 0:01:50.8]} 45. Kg2 {[%clk 0:00:27.6]} 45...
Rc1 {[%clk 0:01:50.4]} 46. Bc4 {[%clk 0:00:27.8]} 46... Re1 {[%clk 0:01:40.8]}
47. Kf3 {[%clk 0:00:27.6]} 47... Ke8 {[%clk 0:01:34]} 48. Re2 {[%clk 0:00:25.6]}
48... Rxe2 {[%clk 0:01:33.5]} 49. Kxe2 {[%clk 0:00:26.5]} 49... g4 {[%clk
0:01:32.6]} 50. hxg4 {[%clk 0:00:25.6]} 50... h3 {[%clk 0:01:33]} 51. Kf2 {[%clk
0:00:24.4]} 51... h2 {[%clk 0:01:32.5]} 52. Kg2 {[%clk 0:00:24.5]} 52... Rxc4
{[%clk 0:01:31.3]} 53. bxc4 {[%clk 0:00:22.3]} 53... a4 {[%clk 0:01:31.8]} 54.
e5 {[%clk 0:00:19.1]} 54... h1=Q+ {[%clk 0:01:30.7]} 55. Kxh1 {[%clk 0:00:18.9]}
55... b3 {[%clk 0:01:31.2]} 56. exf6 {[%clk 0:00:18.2]} 56... b2 {[%clk
0:01:30.3]} 57. Kg2 {[%clk 0:00:17.3]} 57... b1=Q {[%clk 0:01:30.4]} 58. g5
{[%clk 0:00:18.2]} 58... Qxf5 {[%clk 0:01:30.2]} 0-1

[Event "*** Titled Tuesday Blitz"]
[Site "Chess.com"]
[Date "2020.10.20"]
[Round "4"]
[White "ChristopherYoo"]
[Black "Sven_Tica"]
[Result "1-0"]
[WhiteElo "2839"]
[BlackElo "2660"]
[TimeControl "180+1"]
[EndTime "10:40:43 PDT"]
[Termination "ChristopherYoo won by resignation"]

1. Nf3 {[%clk 0:03:00.9]} 1... d5 {[%clk 0:02:59.9]} 2. c4 {[%clk 0:02:58.8]}
2... e6 {[%clk 0:03:00.1]} 3. d4 {[%clk 0:02:55.2]} 3... Nf6 {[%clk 0:03:00.2]}
4. Nc3 {[%clk 0:02:55]} 4... Nbd7 {[%clk 0:03:00.2]} 5. Qd3 {[%clk 0:02:50.4]}
5... Bb4 {[%clk 0:02:47.3]} 6. a3 {[%clk 0:02:45]} 6... Bxc3+ {[%clk 0:02:41.4]}
7. Qxc3 {[%clk 0:02:44.3]} 7... O-O {[%clk 0:02:35.5]} 8. g3 {[%clk 0:02:43]}
8... b6 {[%clk 0:02:30.7]} 9. Bg2 {[%clk 0:02:42]} 9... Bb7 {[%clk 0:02:31.2]}
10. O-O {[%clk 0:02:42.2]} 10... h6 {[%clk 0:02:31.2]} 11. Rd1 {[%clk
0:02:40.8]} 11... Ne4 {[%clk 0:02:30.9]} 12. Qc2 {[%clk 0:02:38.8]} 12... Rc8
{[%clk 0:02:29.7]} 13. Bf4 {[%clk 0:02:28.1]} 13... Qe7 {[%clk 0:02:29]} 14.
Rac1 {[%clk 0:02:15]} 14... Rfd8 {[%clk 0:02:25.3]} 15. cxd5 {[%clk 0:02:04.8]}
15... exd5 {[%clk 0:02:04.7]} 16. Bxc7 {[%clk 0:02:03.4]} 16... Re8 {[%clk
0:02:04.9]} 17. Qd3 {[%clk 0:01:40.8]} 17... Ndf6 {[%clk 0:01:34.7]} 18. Bf4
{[%clk 0:01:37.6]} 18... Ng4 {[%clk 0:01:34.7]} 19. Be3 {[%clk 0:01:26.6]} 19...
Nd6 {[%clk 0:01:26]} 20. Ne5 {[%clk 0:01:21.7]} 20... Rxc1 {[%clk 0:01:19.6]}
21. Bxc1 {[%clk 0:01:16.8]} 21... Nxe5 {[%clk 0:01:11.4]} 22. dxe5 {[%clk
0:01:16.1]} 22... Ne4 {[%clk 0:01:11.5]} 23. Bf4 {[%clk 0:01:04.5]} 23... g5
{[%clk 0:01:04.4]} 24. Be3 {[%clk 0:01:02.3]} 24... Qxe5 {[%clk 0:01:03]} 25.
Bd4 {[%clk 0:01:01.6]} 25... Qe6 {[%clk 0:01:02.2]} 26. Rc1 {[%clk 0:00:58.7]}
26... Rc8 {[%clk 0:00:58.5]} 27. Rxc8+ {[%clk 0:00:53.3]} 27... Bxc8 {[%clk
0:00:59.4]} 28. Qc2 {[%clk 0:00:49.8]} 28... Bb7 {[%clk 0:00:35.3]} 29. Qc7
{[%clk 0:00:44.5]} 29... Qc8 {[%clk 0:00:35.6]} 30. Qe5 {[%clk 0:00:41]} 30...
Qc1+ {[%clk 0:00:22.1]} 31. Bf1 {[%clk 0:00:39.6]} 31... Kf8 {[%clk 0:00:17.5]}
32. Qb8+ {[%clk 0:00:32.4]} 32... Bc8 {[%clk 0:00:15.9]} 33. Bc3 {[%clk
0:00:31.8]} 33... Nxc3 {[%clk 0:00:14.1]} 34. Qxc8+ {[%clk 0:00:31.3]} 1-0

[Event "*** Titled Tuesday Blitz"]
[Site "Chess.com"]
[Date "2020.10.20"]
[Round "4"]
[White "AungTZ"]
[Black "ikhasu"]
[Result "0-1"]
[WhiteElo "2138"]
[BlackElo "2418"]
[TimeControl "180+1"]
[EndTime "10:40:45 PDT"]
[Termination "ikhasu won by resignation"]

1. c4 {[%clk 0:02:32.1]} 1... Nf6 {[%clk 0:02:53.3]} 2. Nc3 {[%clk 0:02:31.2]}
2... d5 {[%clk 0:02:51.8]} 3. cxd5 {[%clk 0:02:30.5]} 3... Nxd5 {[%clk
0:02:51.9]} 4. Nf3 {[%clk 0:02:30.7]} 4... c5 {[%clk 0:02:51.6]} 5. d3 {[%clk
0:02:25.5]} 5... Nc6 {[%clk 0:02:51.1]} 6. g3 {[%clk 0:02:25.4]} 6... e5 {[%clk
0:02:50.3]} 7. Bg2 {[%clk 0:02:23.8]} 7... Nc7 {[%clk 0:02:49.2]} 8. O-O {[%clk
0:02:21.5]} 8... Be7 {[%clk 0:02:49.2]} 9. a3 {[%clk 0:02:20.3]} 9... O-O {[%clk
0:02:45.6]} 10. Bd2 {[%clk 0:02:12.1]} 10... Be6 {[%clk 0:02:44.1]} 11. Ne4
{[%clk 0:02:02.6]} 11... f6 {[%clk 0:02:05.5]} 12. Rc1 {[%clk 0:01:49.7]} 12...
Na6 {[%clk 0:02:05.3]} 13. Qa4 {[%clk 0:01:28.9]} 13... Kh8 {[%clk 0:01:57.5]}
14. Rfd1 {[%clk 0:01:24]} 14... Qb6 {[%clk 0:01:55.2]} 15. Qc2 {[%clk
0:01:15.7]} 15... Bb3 {[%clk 0:01:52.2]} 16. Qb1 {[%clk 0:01:13.9]} 16... Bxd1
{[%clk 0:01:51.8]} 17. Rxd1 {[%clk 0:01:13.9]} 17... Nd4 {[%clk 0:01:52]} 18. e3
{[%clk 0:01:05]} 18... Nxf3+ {[%clk 0:01:41.6]} 19. Bxf3 {[%clk 0:01:04.2]}
19... Rfd8 {[%clk 0:01:39.9]} 20. Bc3 {[%clk 0:00:59.6]} 20... Rac8 {[%clk
0:01:33.6]} 21. Nd2 {[%clk 0:00:54.1]} 21... Qc7 {[%clk 0:01:25.9]} 22. Bg4
{[%clk 0:00:40.1]} 22... Rb8 {[%clk 0:01:25.6]} 23. e4 {[%clk 0:00:21.6]} 23...
b5 {[%clk 0:01:21.9]} 24. Nf1 {[%clk 0:00:16.6]} 24... b4 {[%clk 0:01:21.9]} 25.
axb4 {[%clk 0:00:15.4]} 25... cxb4 {[%clk 0:01:20]} 26. Be1 {[%clk 0:00:13.7]}
26... b3 {[%clk 0:01:14.7]} 27. Ne3 {[%clk 0:00:12.2]} 27... Nb4 {[%clk
0:01:07.2]} 28. Be6 {[%clk 0:00:08.9]} 28... Bc5 {[%clk 0:01:04.4]} 29. Nd5
{[%clk 0:00:07.9]} 29... Nxd5 {[%clk 0:01:03.2]} 30. Bxd5 {[%clk 0:00:08.8]}
30... Bd4 {[%clk 0:01:03]} 31. Kg2 {[%clk 0:00:07.8]} 31... Qc2 {[%clk
0:01:02.6]} 32. Qa1 {[%clk 0:00:05.2]} 32... Bxb2 {[%clk 0:01:01.5]} 33. Qxa7
{[%clk 0:00:04]} 33... Qxd1 {[%clk 0:01:00.3]} 0-1

[Event "*** Titled Tuesday Blitz"]
[Site "Chess.com"]
[Date "2020.10.20"]
[Round "4"]
[White "RobertoJBM"]
[Black "chesstrainer2042"]
[Result "1-0"]
[WhiteElo "2697"]
[BlackElo "2460"]
[TimeControl "180+1"]
[EndTime "10:40:46 PDT"]
[Termination "RobertoJBM won by resignation"]

1. d4 {[%clk 0:03:00.9]} 1... Nf6 {[%clk 0:02:59.3]} 2. c4 {[%clk 0:03:00.8]}
2... e6 {[%clk 0:02:59.6]} 3. Nc3 {[%clk 0:03:00.7]} 3... Bb4 {[%clk 0:02:59.2]}
4. Qc2 {[%clk 0:03:00.7]} 4... O-O {[%clk 0:02:58.2]} 5. a3 {[%clk 0:03:00.3]}
5... Bxc3+ {[%clk 0:02:57.4]} 6. Qxc3 {[%clk 0:03:01.2]} 6... d5 {[%clk
0:02:57.8]} 7. Bg5 {[%clk 0:03:00.8]} 7... dxc4 {[%clk 0:02:55.3]} 8. Qxc4
{[%clk 0:03:01.7]} 8... b6 {[%clk 0:02:55.7]} 9. Nf3 {[%clk 0:03:01.8]} 9... Ba6
{[%clk 0:02:55]} 10. Qa4 {[%clk 0:03:01.8]} 10... Qd7 {[%clk 0:02:54.8]} 11.
Qxd7 {[%clk 0:02:47.1]} 11... Nbxd7 {[%clk 0:02:54.4]} 12. Rc1 {[%clk
0:02:44.7]} 12... Rac8 {[%clk 0:02:45.4]} 13. e3 {[%clk 0:02:43.6]} 13... Bxf1
{[%clk 0:02:43.7]} 14. Rxf1 {[%clk 0:02:43.3]} 14... c5 {[%clk 0:02:33.3]} 15.
Bxf6 {[%clk 0:02:39.7]} 15... gxf6 {[%clk 0:02:30.4]} 16. Ke2 {[%clk 0:02:38.1]}
16... c4 {[%clk 0:02:21]} 17. e4 {[%clk 0:02:33.6]} 17... b5 {[%clk 0:02:20.7]}
18. Rfd1 {[%clk 0:02:31.2]} 18... Nb6 {[%clk 0:02:20.8]} 19. Rc2 {[%clk
0:02:30.2]} 19... Rc7 {[%clk 0:02:11.7]} 20. Ke3 {[%clk 0:02:16.5]} 20... a6
{[%clk 0:02:04.8]} 21. Nd2 {[%clk 0:02:10.4]} 21... Rfc8 {[%clk 0:01:53.3]} 22.
Nb1 {[%clk 0:02:09.9]} 22... f5 {[%clk 0:01:37.5]} 23. exf5 {[%clk 0:01:35.3]}
23... exf5 {[%clk 0:01:37.3]} 24. Nc3 {[%clk 0:01:30.5]} 24... Kg7 {[%clk
0:01:28.3]} 25. d5 {[%clk 0:01:26.8]} 25... Kf6 {[%clk 0:01:28.1]} 26. Rd4
{[%clk 0:01:23.1]} 26... Re7+ {[%clk 0:01:21.5]} 27. Kf4 {[%clk 0:01:20.1]}
27... Rg8 {[%clk 0:01:20.5]} 28. f3 {[%clk 0:01:13.6]} 28... Rd8 {[%clk
0:00:54.2]} 29. Rcd2 {[%clk 0:01:08.4]} 29... Rd6 {[%clk 0:00:44.5]} 30. g4
{[%clk 0:01:05.8]} 30... fxg4 {[%clk 0:00:44]} 31. Ne4+ {[%clk 0:01:03.5]} 31...
Rxe4+ {[%clk 0:00:41.7]} 32. fxe4 {[%clk 0:01:04.4]} 32... Ke7 {[%clk
0:00:39.2]} 33. e5 {[%clk 0:01:03.1]} 33... Rh6 {[%clk 0:00:38.9]} 34. Kxg4
{[%clk 0:00:59.8]} 34... Na4 {[%clk 0:00:34.7]} 35. d6+ {[%clk 0:00:55.2]} 35...
Kd7 {[%clk 0:00:32.8]} 36. Rf4 {[%clk 0:00:53.3]} 36... Rg6+ {[%clk 0:00:30.7]}
37. Kh5 {[%clk 0:00:46]} 37... Rg7 {[%clk 0:00:25.6]} 38. Kh6 {[%clk 0:00:44]}
1-0

[Event "*** Titled Tuesday Blitz"]
[Site "Chess.com"]
[Date "2020.10.20"]
[Round "4"]
[White "keepitcoming"]
[Black "Arfan48"]
[Result "1-0"]
[WhiteElo "2627"]
[BlackElo "2374"]
[TimeControl "180+1"]
[EndTime "10:40:46 PDT"]
[Termination "keepitcoming won by resignation"]

1. d4 {[%clk 0:03:00.9]} 1... Nf6 {[%clk 0:02:58.5]} 2. c4 {[%clk 0:03:00.2]}
2... g6 {[%clk 0:02:58.9]} 3. Nc3 {[%clk 0:03:00.4]} 3... Bg7 {[%clk 0:02:59.5]}
4. e4 {[%clk 0:03:00.6]} 4... d6 {[%clk 0:02:59.9]} 5. f3 {[%clk 0:03:01.1]}
5... O-O {[%clk 0:02:59.6]} 6. Nge2 {[%clk 0:03:01.2]} 6... a6 {[%clk
0:02:49.5]} 7. a4 {[%clk 0:02:57]} 7... a5 {[%clk 0:02:41.2]} 8. Ng3 {[%clk
0:02:38.4]} 8... Na6 {[%clk 0:02:37]} 9. Be2 {[%clk 0:02:33.9]} 9... c6 {[%clk
0:02:34.5]} 10. O-O {[%clk 0:02:30.1]} 10... Nb4 {[%clk 0:02:31.7]} 11. Bg5
{[%clk 0:02:26.6]} 11... Qc7 {[%clk 0:02:21.2]} 12. Qd2 {[%clk 0:02:22.3]} 12...
e5 {[%clk 0:02:11.4]} 13. d5 {[%clk 0:02:21.4]} 13... Re8 {[%clk 0:01:47.7]} 14.
Rad1 {[%clk 0:02:08.5]} 14... cxd5 {[%clk 0:01:16.7]} 15. cxd5 {[%clk 0:02:03]}
15... Nd7 {[%clk 0:01:15.8]} 16. Be3 {[%clk 0:01:52.8]} 16... b6 {[%clk
0:01:07.7]} 17. Nb5 {[%clk 0:01:47.1]} 17... Qb8 {[%clk 0:01:07.5]} 18. Bh6
{[%clk 0:01:42.5]} 18... Nc5 {[%clk 0:01:00.8]} 19. Bxg7 {[%clk 0:01:38.5]}
19... Kxg7 {[%clk 0:01:01]} 20. Qg5 {[%clk 0:01:38.5]} 20... Bd7 {[%clk
0:00:28.1]} 21. Nh5+ {[%clk 0:01:24.6]} 21... Kf8 {[%clk 0:00:27.7]} 22. Nf6
{[%clk 0:01:13.5]} 22... Rd8 {[%clk 0:00:26]} 23. Qh6+ {[%clk 0:01:07.6]} 23...
Ke7 {[%clk 0:00:25.4]} 24. Nxh7 {[%clk 0:01:06.2]} 24... Rh8 {[%clk 0:00:12.9]}
25. Qg5+ {[%clk 0:00:58]} 25... Ke8 {[%clk 0:00:12.8]} 26. Nf6+ {[%clk
0:00:50.3]} 26... Kf8 {[%clk 0:00:13.1]} 27. f4 {[%clk 0:00:48]} 27... Bxb5
{[%clk 0:00:13.1]} 28. Bxb5 {[%clk 0:00:45.3]} 28... Kg7 {[%clk 0:00:07.5]} 29.
fxe5 {[%clk 0:00:42.7]} 29... dxe5 {[%clk 0:00:08.4]} 30. d6 {[%clk 0:00:41.5]}
30... Ne6 {[%clk 0:00:03]} 31. Qxe5 {[%clk 0:00:40.2]} 31... Kh6 {[%clk
0:00:02.9]} 32. Ng4+ {[%clk 0:00:36.2]} 1-0

[Event "*** Titled Tuesday Blitz"]
[Site "Chess.com"]
[Date "2020.10.20"]
[Round "4"]
[White "Vandros57"]
[Black "AurumO"]
[Result "1/2-1/2"]
[WhiteElo "2190"]
[BlackElo "1952"]
[TimeControl "180+1"]
[EndTime "10:40:51 PDT"]
[Termination "Game drawn by agreement"]

1. d4 {[%clk 0:02:58.1]} 1... d5 {[%clk 0:02:59.2]} 2. Nf3 {[%clk 0:02:56.4]}
2... Nf6 {[%clk 0:02:59.4]} 3. c4 {[%clk 0:02:54.9]} 3... e6 {[%clk 0:02:59.4]}
4. Nc3 {[%clk 0:02:53.2]} 4... Be7 {[%clk 0:02:59.6]} 5. Bg5 {[%clk 0:02:51.8]}
5... O-O {[%clk 0:02:59.6]} 6. e3 {[%clk 0:02:50.7]} 6... c5 {[%clk 0:02:57.9]}
7. cxd5 {[%clk 0:02:46]} 7... exd5 {[%clk 0:02:57.8]} 8. dxc5 {[%clk 0:02:42.7]}
8... Bxc5 {[%clk 0:02:56.8]} 9. Be2 {[%clk 0:02:39.5]} 9... Be6 {[%clk
0:02:54.1]} 10. O-O {[%clk 0:02:38.2]} 10... Nc6 {[%clk 0:02:54.1]} 11. Rc1
{[%clk 0:02:35.4]} 11... Bb6 {[%clk 0:02:53.6]} 12. a3 {[%clk 0:02:29.8]} 12...
h6 {[%clk 0:02:53.7]} 13. Bh4 {[%clk 0:02:27.3]} 13... Qe7 {[%clk 0:02:47.6]}
14. h3 {[%clk 0:02:24.9]} 14... Rfd8 {[%clk 0:02:46.6]} 15. Re1 {[%clk
0:02:19.4]} 15... d4 {[%clk 0:02:39.6]} 16. exd4 {[%clk 0:02:17.2]} 16... Nxd4
{[%clk 0:02:35.1]} 17. Nxd4 {[%clk 0:02:16.2]} 17... Rxd4 {[%clk 0:02:36]} 18.
Bxf6 {[%clk 0:02:08]} 18... Qxf6 {[%clk 0:02:26]} 19. Qc2 {[%clk 0:02:04]} 19...
Rc8 {[%clk 0:02:06.3]} 20. Bf3 {[%clk 0:01:59.9]} 20... Bf5 {[%clk 0:01:34.4]}
21. Qe2 {[%clk 0:01:54.5]} 21... Bd3 {[%clk 0:01:24.1]} 22. Qe7 {[%clk
0:01:49.3]} 22... Qg6 {[%clk 0:01:16]} 23. Qxb7 {[%clk 0:01:41.9]} 23... Rcd8
{[%clk 0:01:12.1]} 24. Rcd1 {[%clk 0:01:29.5]} 24... Bf5 {[%clk 0:01:01.2]} 25.
Kh1 {[%clk 0:01:16.8]} 25... Rd2 {[%clk 0:00:41.1]} 26. Rxd2 {[%clk 0:01:14.2]}
26... Rxd2 {[%clk 0:00:39.9]} 27. Be4 {[%clk 0:01:07.1]} 27... Rxf2 {[%clk
0:00:29.8]} 28. Qa8+ {[%clk 0:00:50]} 28... Kh7 {[%clk 0:00:26.8]} 29. Bxf5
{[%clk 0:00:49.2]} 29... Qxf5 {[%clk 0:00:24.9]} 30. Qe4 {[%clk 0:00:47.9]}
30... Qxe4 {[%clk 0:00:23.8]} 31. Rxe4 {[%clk 0:00:42.3]} 31... Rxb2 {[%clk
0:00:23.5]} 32. Re7 {[%clk 0:00:39.8]} 32... Kg6 {[%clk 0:00:16.7]} 33. Nd5
{[%clk 0:00:39]} 33... Rb3 {[%clk 0:00:08.7]} 34. Nxb6 {[%clk 0:00:37]} 34...
Rxb6 {[%clk 0:00:09.6]} 35. Rxa7 {[%clk 0:00:36]} 35... Rb1+ {[%clk 0:00:09.3]}
36. Kh2 {[%clk 0:00:35]} 36... Ra1 {[%clk 0:00:09.7]} 1/2-1/2

[Event "*** Titled Tuesday Blitz"]
[Site "Chess.com"]
[Date "2020.10.20"]
[Round "4"]
[White "aloe_normansen"]
[Black "PawnEatingZombie"]
[Result "1-0"]
[WhiteElo "2339"]
[BlackElo "2162"]
[TimeControl "180+1"]
[EndTime "10:40:52 PDT"]
[Termination "aloe_normansen won by resignation"]

1. e4 {[%clk 0:03:00.9]} 1... c6 {[%clk 0:02:59.8]} 2. d4 {[%clk 0:03:00.6]}
2... d5 {[%clk 0:03:00.7]} 3. e5 {[%clk 0:03:01.1]} 3... Bf5 {[%clk 0:03:00]} 4.
Nf3 {[%clk 0:02:59.9]} 4... e6 {[%clk 0:02:58.8]} 5. Be2 {[%clk 0:03:00.3]} 5...
Nd7 {[%clk 0:02:57.8]} 6. O-O {[%clk 0:02:58.7]} 6... Bg6 {[%clk 0:02:58.2]} 7.
Be3 {[%clk 0:02:56.3]} 7... Nh6 {[%clk 0:02:57.4]} 8. a4 {[%clk 0:02:39.3]} 8...
Nf5 {[%clk 0:02:55]} 9. Bg5 {[%clk 0:02:33.3]} 9... Be7 {[%clk 0:02:41.7]} 10.
Bxe7 {[%clk 0:02:32.9]} 10... Qxe7 {[%clk 0:02:42.6]} 11. a5 {[%clk 0:02:31.1]}
11... a6 {[%clk 0:02:40.8]} 12. Nbd2 {[%clk 0:02:29.2]} 12... O-O {[%clk
0:02:39.8]} 13. Nb3 {[%clk 0:02:27.4]} 13... c5 {[%clk 0:02:35.2]} 14. dxc5
{[%clk 0:02:19]} 14... Nxc5 {[%clk 0:02:34.2]} 15. Nbd4 {[%clk 0:02:19.2]} 15...
Nxd4 {[%clk 0:02:32.7]} 16. Nxd4 {[%clk 0:02:19.4]} 16... Rac8 {[%clk
0:02:23.1]} 17. f4 {[%clk 0:02:17.7]} 17... Be4 {[%clk 0:02:19.6]} 18. Bf3
{[%clk 0:02:15.9]} 18... Qc7 {[%clk 0:02:14.5]} 19. Qe2 {[%clk 0:02:06.7]} 19...
Bxf3 {[%clk 0:02:09.8]} 20. Rxf3 {[%clk 0:02:06.9]} 20... Ne4 {[%clk 0:02:08.5]}
21. Rh3 {[%clk 0:02:04.5]} 21... Qc4 {[%clk 0:01:52]} 22. Qd1 {[%clk 0:01:32.7]}
22... Rc7 {[%clk 0:01:29.7]} 23. c3 {[%clk 0:01:31.7]} 23... Qc5 {[%clk
0:00:51.6]} 24. Qh5 {[%clk 0:01:27.1]} 24... h6 {[%clk 0:00:50.8]} 25. Qg4
{[%clk 0:01:25.4]} 25... Kh7 {[%clk 0:00:47.1]} 26. f5 {[%clk 0:01:14.7]} 26...
exf5 {[%clk 0:00:41.5]} 27. Qxf5+ {[%clk 0:01:15.6]} 27... Kg8 {[%clk
0:00:37.9]} 28. Rf1 {[%clk 0:01:08.3]} 28... Ng5 {[%clk 0:00:34.6]} 29. Rg3
{[%clk 0:01:05.2]} 29... Ne6 {[%clk 0:00:33.5]} 30. Qg4 {[%clk 0:00:52.1]} 30...
g6 {[%clk 0:00:30]} 31. Kh1 {[%clk 0:00:43.5]} 31... Nxd4 {[%clk 0:00:28.5]} 32.
cxd4 {[%clk 0:00:44]} 32... Qe7 {[%clk 0:00:26.8]} 33. h4 {[%clk 0:00:42.4]}
33... Rc6 {[%clk 0:00:26.6]} 34. h5 {[%clk 0:00:41.5]} 34... Kh7 {[%clk
0:00:25.5]} 35. Rf4 {[%clk 0:00:34.3]} 35... gxh5 {[%clk 0:00:23.8]} 36. Qf5+
{[%clk 0:00:32]} 36... Rg6 {[%clk 0:00:21.6]} 37. Rxg6 {[%clk 0:00:31.3]} 37...
fxg6 {[%clk 0:00:21.4]} 38. Qxf8 {[%clk 0:00:31.6]} 1-0

[Event "*** Titled Tuesday Blitz"]
[Site "Chess.com"]
[Date "2020.10.20"]
[Round "4"]
[White "bakki78"]
[Black "GOGIEFF"]
[Result "0-1"]
[WhiteElo "2733"]
[BlackElo "2890"]
[TimeControl "180+1"]
[EndTime "10:40:53 PDT"]
[Termination "GOGIEFF won by checkmate"]

1. e4 {[%clk 0:03:00.9]} 1... a6 {[%clk 0:03:00.5]} 2. d4 {[%clk 0:02:58.4]}
2... b5 {[%clk 0:03:00.8]} 3. Bd3 {[%clk 0:02:58.4]} 3... Bb7 {[%clk 0:03:01.2]}
4. Qe2 {[%clk 0:02:58.5]} 4... e6 {[%clk 0:03:01.1]} 5. Nf3 {[%clk 0:02:57.5]}
5... c5 {[%clk 0:03:01.3]} 6. c3 {[%clk 0:02:53.6]} 6... Nf6 {[%clk 0:03:01.5]}
7. O-O {[%clk 0:02:50.2]} 7... Be7 {[%clk 0:03:01]} 8. a4 {[%clk 0:02:48.4]}
8... bxa4 {[%clk 0:02:47]} 9. Rxa4 {[%clk 0:02:45]} 9... O-O {[%clk 0:02:47]}
10. e5 {[%clk 0:02:42.1]} 10... Nd5 {[%clk 0:02:44.6]} 11. dxc5 {[%clk
0:02:37.9]} 11... f5 {[%clk 0:02:28.4]} 12. exf6 {[%clk 0:02:34.9]} 12... Nxf6
{[%clk 0:02:28.5]} 13. Rh4 {[%clk 0:02:14]} 13... Bxc5 {[%clk 0:02:22.1]} 14.
Bg5 {[%clk 0:01:58.9]} 14... h6 {[%clk 0:02:18.1]} 15. Bxh6 {[%clk 0:01:56.9]}
15... gxh6 {[%clk 0:02:19]} 16. Rxh6 {[%clk 0:01:57.1]} 16... Rf7 {[%clk
0:02:05.2]} 17. Ng5 {[%clk 0:01:51.5]} 17... Rg7 {[%clk 0:02:02.1]} 18. h4
{[%clk 0:01:50.5]} 18... Nc6 {[%clk 0:01:49.3]} 19. Nd2 {[%clk 0:01:43.8]} 19...
Be7 {[%clk 0:01:31.3]} 20. Ndf3 {[%clk 0:01:30.5]} 20... Qc7 {[%clk 0:01:23.9]}
21. Nxe6 {[%clk 0:01:06.4]} 21... dxe6 {[%clk 0:01:15.1]} 22. Qxe6+ {[%clk
0:01:03.1]} 22... Kf8 {[%clk 0:01:05.8]} 23. Ng5 {[%clk 0:00:55.1]} 23... Ne5
{[%clk 0:00:51.5]} 24. Rxf6+ {[%clk 0:00:16.1]} 24... Bxf6 {[%clk 0:00:51.6]}
25. Qxf6+ {[%clk 0:00:16.4]} 25... Kg8 {[%clk 0:00:44.6]} 26. Bf5 {[%clk
0:00:16.9]} 26... Bd5 {[%clk 0:00:36.9]} 27. Re1 {[%clk 0:00:16.4]} 27... Re8
{[%clk 0:00:35.1]} 28. c4 {[%clk 0:00:14.8]} 28... Qxc4 {[%clk 0:00:27]} 29.
Rxe5 {[%clk 0:00:12.4]} 29... Qc1+ {[%clk 0:00:27.1]} 30. Kh2 {[%clk 0:00:12.8]}
30... Qf4+ {[%clk 0:00:27.2]} 31. g3 {[%clk 0:00:12.9]} 31... Qxf2+ {[%clk
0:00:23.1]} 32. Kh3 {[%clk 0:00:12.2]} 32... Bg2+ {[%clk 0:00:23.3]} 33. Kg4
{[%clk 0:00:11.5]} 33... Qf3# {[%clk 0:00:23.7]} 0-1